lending/lending_fUSD_20240703
["ID","MTS","AMOUNT","RATE_DAILY","PERIOD"]
[331026384,1720013431133,2374.66560642,0.00011199,2]
[331026391,1720013432042,-171.75,0.00011883,2]
[331026392,1720013432051,-193.58819095,0.00012302,2]
[331026393,1720013432061,-384.61,0.0001286,2]
[331026394,1720013432070,-300.0,0.00013471,2]
[331026395,1720013432080,-3026.21301367,0.00013472,2]
[331026397,1720013432090,-1902.48215046,0.00013472,2]
[331026398,1720013432100,-214.00416671,0.00013472,2]
[331026400,1720013432109,-155.14654103,0.00013472,2]
[331026401,1720013432118,-150.0,0.00013473,2]
[331026402,1720013432127,-35415.3911,0.00013474,2]
[331026403,1720013432137,-281.0485,0.00013474,2]
[331026404,1720013432146,-1494.2292,0.00013474,2]
[331026405,1720013432155,-2554.1575,0.00013474,2]
[331026406,1720013432165,-717.65350727,0.00013516,2]
[331026407,1720013432174,-328.82033738,0.00013516,2]
[331026412,1720013432447,-218.18052413,0.00013516,2]
[331026413,1720013432457,-366.20311967,0.00013543,2]
[331026414,1720013432466,-1152.31990522,0.00013573,3]
[331026415,1720013432475,-499.99,0.00013574,2]
[331026416,1720013432484,-227.12084219,0.00013574,2]
[331026417,1720013432493,-895.63302766,0.00013574,2]
[331026419,1720013432503,-300.21600683,0.00013574,2]
[331026421,1720013432512,-1161.71,0.00013636,2]
[331026422,1720013432521,-905.4644,0.00013636,2]
[331026423,1720013432531,-626.98777792,0.00013899,2]
[331026424,1720013432540,-3446.4424,0.000139,2]
[331026425,1720013432550,-111673.1067,0.000139,2]
[331026426,1720013432560,-9700.0161,0.000139,2]
[331026427,1720013432569,-1000.0,0.000139,2]
[331026428,1720013432578,-420.0,0.00014766,2]
[331026429,1720013432588,-250.0,0.00014853,2]
[331026430,1720013432598,-7227.12,0.00014972,2]
[331026431,1720013432608,-545.99987395,0.00015,2]
[331026432,1720013432617,-5000.0,0.00015,2]
[331026433,1720013432628,-250.0,0.0001501,2]
[331026434,1720013432638,-159.56,0.0001501,2]
[331026435,1720013432648,-384.61,0.00015123,2]
[331026436,1720013432658,-409.83,0.00015335,2]
[331026437,1720013432667,-775.8,0.00015335,2]
[331026438,1720013432676,-1585.74,0.00015335,2]
[331026439,1720013432685,-11551.86,0.00015335,2]
[331026440,1720013432696,-587.0,0.00016186,2]
[331026441,1720013432705,-593.98,0.00016188,2]
[331026442,1720013432714,-300.0,0.0001638,2]
[331026443,1720013432723,-1341.41,0.00016438,2]
[331026444,1720013432731,-30492.6875136,0.00016439,7]
[331026445,1720013432740,-156.76127,0.00016986,2]
[331026446,1720013432749,-500.0,0.0001726,2]
[331026447,1720013432759,-500.0,0.0001726,2]
[331026448,1720013432768,-384.61,0.00017387,2]
[331026449,1720013432777,-823.0,0.00017742,2]
[331026450,1720013432786,-300.0,0.0001775,2]
[331026451,1720013432804,-156.76127,0.00017808,2]
[331026452,1720013432814,-593.98,0.00018211,2]
[331026453,1720013432823,-500.0,0.00018356,2]
[331026454,1720013432833,-500.0,0.00018356,2]
[331026455,1720013432845,-156.76127,0.0001863,2]
[331026456,1720013432854,-151.41,0.000189,2]
[331026457,1720013432863,-532.71676313,0.00018919,2]
[331026458,1720013432873,-155.84857645,0.00018919,2]
[331026459,1720013432883,-327.83754412,0.00018999,2]
[331026460,1720013432892,-6226.87895139,0.00019352,2]
[331026461,1720013432902,-520.64721014,0.00019399,2]
[331026462,1720013432911,-1152.0,0.00019448,2]
[331026463,1720013432921,-500.0,0.00019452,2]
[331026464,1720013432932,-156.76127,0.00019452,2]
[331026465,1720013432942,-155.0,0.00019548,2]
[331026466,1720013432952,-201.8882825,0.00019548,2]
[331026467,1720013432961,-474.28975858,0.00019565,2]
[331026468,1720013432971,-164.68846138,0.00019625,2]
[331026469,1720013432980,-384.61,0.00019651,2]
[331026470,1720013432990,-208.04,0.00019707,2]
[331026471,1720013432999,-690.82314876,0.00019725,2]
[331026472,1720013433008,-236.08,0.00019766,2]
[331026473,1720013433017,-250.0,0.00019804,2]
[331026474,1720013433027,-163.42,0.00019915,2]
[331026475,1720013433036,-1424.40263511,0.0002,2]
[331026476,1720013433046,-298.73022028,0.0002,2]
[331026477,1720013433055,-593.98,0.00020234,2]
[331026478,1720013433065,-156.76127,0.00020274,2]
[331026479,1720013433075,-164.68846137,0.00020721,2]
[331026480,1720013433084,-10000.0,0.00020821,2]
[331026481,1720013433096,-3579.0,0.000213,5]
[331026482,1720013433105,-1613.0,0.00021318,2]
[331026483,1720013433114,-177.7859223,0.00021607,2]
[331026484,1720013433124,-386.66,0.00021644,2]
[331026485,1720013433133,-150.0,0.00021644,2]
[331026486,1720013433143,-150.0,0.00021646,2]
[331026487,1720013433152,-1500.0,0.00021651,2]
[331026488,1720013433161,-150.0,0.00021654,2]
[331026489,1720013433172,-150.0,0.00021656,2]
[331026490,1720013433181,-150.0,0.00021656,2]
[331026491,1720013433191,-150.0,0.00021662,2]
[331026492,1720013433200,-150.0,0.00021685,2]
[331026493,1720013433209,-150.0,0.00021686,2]
[331026494,1720013433219,-150.0,0.00021698,2]
[331026495,1720013433228,-14929.43624541,0.000217,2]
[331026496,1720013433238,-150.0,0.00021707,2]
[331026497,1720013433247,-150.0,0.00021707,2]
[331026498,1720013433256,-150.0,0.0002171,2]
[331026499,1720013433266,-150.0,0.00021716,2]
[331026500,1720013433275,-150.0,0.00021736,2]
[331026501,1720013433285,-150.0,0.00021736,2]
[331026502,1720013433294,-150.0,0.0002174,2]
[331026503,1720013433304,-500.0,0.00021742,2]
[331026504,1720013433315,-150.0,0.00021744,2]
[331026505,1720013433329,-150.0,0.00021753,2]
[331026506,1720013433342,-150.0,0.00021759,2]
[331026507,1720013433351,-150.0,0.00021771,2]
[331026508,1720013433360,-150.0,0.00021777,2]
[331026509,1720013433372,-150.0,0.0002178,2]
[331026510,1720013433381,-150.0,0.00021782,2]
[331026511,1720013433390,-150.0,0.00021783,2]
[331026512,1720013433399,-150.0,0.00021784,2]
[331026513,1720013433409,-150.0,0.00021784,2]
[331026514,1720013433418,-150.0,0.00021794,2]
[331026515,1720013433429,-385.42000634,0.00021798,2]
[331026516,1720013433438,-220.33,0.00021808,3]
[331026517,1720013433448,-150.0,0.00021811,2]
[331026518,1720013433457,-150.0,0.00021816,2]
[331026519,1720013433467,-1384.9754,0.00021817,2]
[331026520,1720013433476,-8435.4094,0.00021817,2]
[331026521,1720013433485,-7500.0,0.00021817,2]
[331026522,1720013433494,-891.59299531,0.00021817,2]
[331026523,1720013433504,-151.21081512,0.00021817,2]
[331026524,1720013433514,-167.18443855,0.00021817,2]
[331026525,1720013433523,-164.68846137,0.00021817,2]
[331026526,1720013433533,-890.31921927,0.00021817,2]
[331026527,1720013433542,-284.84184283,0.00021817,4]
[331026528,1720013433551,-953.03121734,0.00021819,2]
[331026529,1720013433560,-150.0,0.00021819,2]
[331026530,1720013433570,-150.0,0.00021849,2]
[331026531,1720013433579,-150.0,0.00021853,2]
[331026532,1720013433591,-150.0,0.00021868,2]
[331026533,1720013433601,-150.0,0.0002187,2]
[331026534,1720013433610,-150.0,0.00021872,2]
[331026535,1720013433619,-150.0,0.00021875,2]
[331026536,1720013433633,-417.14874861,0.00021886,2]
[331026537,1720013433642,-500.0,0.0002189,2]
[331026538,1720013433651,-150.0,0.00021892,2]
[331026539,1720013433661,-256.0,0.00021897,30]
[331026540,1720013433670,-150.0,0.00021898,2]
[331026541,1720013433679,-150.0,0.00021898,2]
[331026542,1720013433689,-491.0,0.000219,4]
[331026543,1720013433699,-534.0,0.000219,2]
[331026544,1720013433708,-1000.0,0.000219,2]
[331026545,1720013433717,-225.0,0.000219,2]
[331026546,1720013433727,-9450.0405908,0.00021905,2]
[331026547,1720013433736,-151.41,0.00021907,2]
[331026548,1720013433745,-150.0,0.00021908,2]
[331026549,1720013433754,-890.31921925,0.00021909,2]
[331026550,1720013433764,-150.0,0.00021912,2]
[331026551,1720013433773,-891.59299524,0.00021915,2]
[331026552,1720013433782,-384.61,0.00021915,2]
[331026553,1720013433791,-626.11265064,0.00021916,2]
[331026554,1720013433800,-798.0,0.00021917,2]
[331026555,1720013433810,-120215.26191094,0.00021917,7]
[331026556,1720013433819,-807.691,0.00021917,2]
[331026557,1720013433829,-500.0,0.00021917,4]
[331026558,1720013433843,-500.0,0.00021917,4]
[331026559,1720013433853,-500.0,0.00021917,4]
[331026560,1720013433862,-500.0,0.00021917,4]
[331026561,1720013433872,-500.0,0.00021917,4]
[331026562,1720013433881,-627.93344474,0.00021917,4]
[331026563,1720013433891,-500.0,0.00021917,4]
[331026564,1720013433900,-500.0,0.00021917,4]
[331026565,1720013433910,-500.0,0.00021917,4]
[331026566,1720013433919,-500.0,0.00021917,4]
[331026567,1720013433931,-503.83441522,0.00021917,4]
[331026568,1720013433941,-500.0,0.00021917,4]
[331026569,1720013433951,-500.0,0.00021917,4]
[331026570,1720013433961,-500.0,0.00021917,4]
[331026571,1720013433971,-505.27927653,0.00021917,4]
[331026572,1720013433981,-500.0,0.00021917,4]
[331026573,1720013433991,-500.0,0.00021917,4]
[331026574,1720013434001,-500.0,0.00021917,4]
[331026575,1720013434010,-500.0,0.00021917,4]
[331026576,1720013434020,-500.0,0.00021917,4]
[331026577,1720013434030,-500.0,0.00021917,4]
[331026578,1720013434040,-500.0,0.00021917,4]
[331026579,1720013434049,-500.0,0.00021917,4]
[331026580,1720013434059,-500.0,0.00021917,4]
[331026581,1720013434070,-478.11923802,0.00021917,4]
[331026582,1720013434079,-500.0,0.00021917,4]
[331026583,1720013434092,-500.0,0.00021917,4]
[331026584,1720013434101,-465.42167828,0.00021917,4]
[331026585,1720013434110,-620.19105377,0.00021917,4]
[331026586,1720013434119,-500.0,0.00021917,4]
[331026587,1720013434129,-500.0,0.00021917,4]
[331026588,1720013434138,-500.0,0.00021917,4]
[331026589,1720013434148,-151.0,0.00021917,2]
[331026590,1720013434158,-500.0,0.00021917,4]
[331026591,1720013434168,-500.0,0.00021917,4]
[331026592,1720013434177,-500.0,0.00021917,4]
[331026593,1720013434187,-500.0,0.00021917,4]
[331026594,1720013434197,-500.0,0.00021917,4]
[331026595,1720013434207,-500.0,0.00021917,4]
[331026596,1720013434216,-500.0,0.00021917,4]
[331026597,1720013434231,-526.88934467,0.00021917,4]
[331026598,1720013434247,-500.0,0.00021917,4]
[331026599,1720013434263,-500.0,0.00021917,4]
[331026600,1720013434278,-500.0,0.00021917,4]
[331026601,1720013434290,-594.54,0.00021917,4]
[331026602,1720013434302,-500.0,0.00021917,4]
[331026603,1720013434317,-500.0,0.00021917,4]
[331026604,1720013434336,-500.0,0.00021917,4]
[331026605,1720013434353,-314.12,0.00021917,4]
[331026606,1720013434368,-500.0,0.00021917,4]
[331026607,1720013434382,-500.0,0.00021917,4]
[331026608,1720013434396,-2000.0,0.00021917,2]
[331026609,1720013434411,-200.0,0.00021917,2]
[331026610,1720013434423,-224.6435509,0.00021917,4]
[331026611,1720013434435,-500.0,0.00021917,4]
[331026612,1720013434448,-500.0,0.00021917,4]
[331026613,1720013434461,-500.0,0.00021917,4]
[331026614,1720013434473,-500.0,0.00021917,4]
[331026615,1720013434487,-500.0,0.00021917,4]
[331026616,1720013434501,-500.0,0.00021917,4]
[331026617,1720013434513,-500.0,0.00021917,4]
[331026618,1720013434523,-500.0,0.00021917,4]
[331026619,1720013434534,-500.0,0.00021917,4]
[331026620,1720013434547,-500.0,0.00021917,4]
[331026621,1720013434559,-500.0,0.00021917,4]
[331026622,1720013434572,-500.0,0.00021917,4]
[331026623,1720013434585,-500.0,0.00021917,4]
[331026624,1720013434600,-500.0,0.00021917,4]
[331026625,1720013434612,-500.0,0.00021917,4]
[331026626,1720013434626,-500.0,0.00021917,4]
[331026627,1720013434639,-500.0,0.00021917,4]
[331026628,1720013434652,-500.0,0.00021917,4]
[331026629,1720013434662,-500.0,0.00021917,4]
[331026630,1720013434672,-500.0,0.00021917,4]
[331026631,1720013434682,-500.0,0.00021917,4]
[331026632,1720013434693,-500.0,0.00021917,4]
[331026633,1720013434706,-500.0,0.00021917,4]
[331026634,1720013434718,-500.0,0.00021917,4]
[331026635,1720013434731,-500.0,0.00021917,4]
[331026636,1720013434741,-500.0,0.00021917,4]
[331026637,1720013434752,-500.0,0.00021917,4]
[331026638,1720013434764,-500.0,0.00021917,4]
[331026639,1720013434776,-500.0,0.00021917,4]
[331026640,1720013434788,-500.0,0.00021917,4]
[331026641,1720013434799,-514.0079231,0.00021917,4]
[331026642,1720013434810,-500.0,0.00021917,4]
[331026643,1720013434822,-500.0,0.00021917,4]
[331026644,1720013434835,-500.0,0.00021917,4]
[331026645,1720013434848,-500.0,0.00021917,4]
[331026646,1720013434859,-500.0,0.00021917,4]
[331026647,1720013434870,-500.0,0.00021917,4]
[331026648,1720013434881,-500.0,0.00021917,4]
[331026649,1720013434892,-500.0,0.00021917,4]
[331026650,1720013434904,-500.0,0.00021917,4]
[331026651,1720013434916,-500.0,0.00021917,4]
[331026652,1720013434931,-500.0,0.00021917,4]
[331026653,1720013434943,-500.0,0.00021917,4]
[331026654,1720013434954,-500.0,0.00021917,4]
[331026655,1720013434965,-500.0,0.00021917,4]
[331026656,1720013434977,-500.0,0.00021917,4]
[331026657,1720013434988,-500.0,0.00021917,4]
[331026658,1720013435000,-500.0,0.00021917,4]
[331026659,1720013435011,-500.0,0.00021917,4]
[331026660,1720013435023,-500.0,0.00021917,4]
[331026661,1720013435034,-500.0,0.00021917,4]
[331026662,1720013435045,-500.0,0.00021917,4]
[331026663,1720013435056,-500.0,0.00021917,4]
[331026664,1720013435068,-500.0,0.00021917,4]
[331026665,1720013435079,-500.0,0.00021917,4]
[331026666,1720013435092,-500.0,0.00021917,4]
[331026667,1720013435103,-500.0,0.00021917,4]
[331026668,1720013435115,-500.0,0.00021917,4]
[331026669,1720013435126,-500.0,0.00021917,4]
[331026670,1720013435138,-500.0,0.00021917,4]
[331026671,1720013435149,-500.0,0.00021917,4]
[331026672,1720013435160,-500.0,0.00021917,4]
[331026673,1720013435171,-500.0,0.00021917,4]
[331026674,1720013435182,-500.0,0.00021917,4]
[331026675,1720013435193,-500.0,0.00021917,4]
[331026676,1720013435204,-500.0,0.00021917,4]
[331026677,1720013435215,-500.0,0.00021917,4]
[331026678,1720013435227,-500.0,0.00021917,4]
[331026679,1720013435237,-500.0,0.00021917,4]
[331026680,1720013435249,-500.0,0.00021917,4]
[331026681,1720013435260,-470.0,0.00021917,4]
[331026682,1720013435271,-500.0,0.00021917,4]
[331026683,1720013435282,-500.0,0.00021917,4]
[331026684,1720013435293,-500.0,0.00021917,4]
[331026685,1720013435304,-500.0,0.00021917,4]
[331026686,1720013435316,-500.0,0.00021917,4]
[331026687,1720013435329,-500.0,0.00021917,4]
[331026688,1720013435342,-500.0,0.00021917,4]
[331026689,1720013435354,-500.0,0.00021917,4]
[331026690,1720013435365,-500.0,0.00021917,4]
[331026691,1720013435377,-500.0,0.00021917,4]
[331026692,1720013435388,-500.0,0.00021917,4]
[331026693,1720013435399,-500.0,0.00021917,4]
[331026694,1720013435412,-500.0,0.00021917,4]
[331026695,1720013435425,-500.0,0.00021917,4]
[331026696,1720013435437,-500.0,0.00021917,4]
[331026697,1720013435448,-500.0,0.00021917,4]
[331026698,1720013435461,-500.0,0.00021917,4]
[331026699,1720013435472,-500.0,0.00021917,4]
[331026700,1720013435484,-500.0,0.00021917,4]
[331026701,1720013435495,-500.0,0.00021917,4]
[331026702,1720013435507,-500.0,0.00021917,4]
[331026703,1720013435518,-500.0,0.00021917,4]
[331026704,1720013435530,-500.0,0.00021917,4]
[331026705,1720013435541,-500.0,0.00021917,4]
[331026706,1720013435552,-500.0,0.00021917,4]
[331026707,1720013435564,-500.0,0.00021917,4]
[331026708,1720013435575,-500.0,0.00021917,4]
[331026709,1720013435587,-254.27,0.00021917,4]
[331026710,1720013435601,-208.53283884,0.00021917,4]
[331026711,1720013435612,-2480.41846449,0.00021917,4]
[331026712,1720013436382,-469.02406266,0.00021917,4]
[331026713,1720013436405,-1052.81538556,0.00021917,4]
[331026714,1720013436449,-605.52213333,0.00021917,4]
[331026715,1720013436458,-495.73894518,0.00021917,4]
[331026716,1720013436467,-500.0,0.00021917,4]
[331026717,1720013436476,-500.0,0.00021917,4]
[331026718,1720013436485,-500.0,0.00021917,4]
[331026719,1720013436495,-500.0,0.00021917,4]
[331026720,1720013436504,-500.0,0.00021917,4]
[331026721,1720013436513,-500.0,0.00021917,4]
[331026722,1720013436522,-500.0,0.00021917,4]
[331026723,1720013436531,-500.0,0.00021917,4]
[331026724,1720013436540,-153.15134785,0.00021917,4]
[331026725,1720013436550,-500.0,0.00021917,4]
[331026726,1720013436559,-500.0,0.00021917,4]
[331026727,1720013436568,-500.0,0.00021917,4]
[331026728,1720013436577,-500.0,0.00021917,4]
[331026729,1720013436586,-500.0,0.00021917,4]
[331026730,1720013436598,-500.0,0.00021917,4]
[331026731,1720013436607,-500.0,0.00021917,4]
[331026732,1720013436617,-500.0,0.00021917,4]
[331026733,1720013436626,-500.0,0.00021917,4]
[331026734,1720013436635,-500.0,0.00021917,4]
[331026735,1720013436644,-254.28,0.00021917,4]
[331026736,1720013436653,-500.0,0.00021917,4]
[331026737,1720013436663,-500.0,0.00021917,4]
[331026738,1720013436672,-500.0,0.00021917,4]
[331026739,1720013436681,-500.0,0.00021917,4]
[331026740,1720013436690,-500.0,0.00021917,4]
[331026741,1720013436699,-500.0,0.00021917,4]
[331026742,1720013436708,-500.0,0.00021917,4]
[331026743,1720013436717,-500.0,0.00021917,4]
[331026744,1720013436726,-500.0,0.00021917,4]
[331026745,1720013436735,-500.0,0.00021917,4]
[331026746,1720013436744,-500.0,0.00021917,4]
[331026747,1720013436753,-354.6,0.00021917,4]
[331026748,1720013436762,-500.0,0.00021917,4]
[331026749,1720013436771,-500.0,0.00021917,4]
[331026750,1720013436780,-500.0,0.00021917,4]
[331026751,1720013436789,-500.0,0.00021917,4]
[331026752,1720013436799,-500.0,0.00021917,4]
[331026753,1720013436808,-500.0,0.00021917,4]
[331026754,1720013436817,-500.0,0.00021917,4]
[331026755,1720013436827,-500.0,0.00021917,4]
[331026756,1720013436835,-500.0,0.00021917,4]
[331026757,1720013436848,-500.0,0.00021917,4]
[331026758,1720013436858,-500.0,0.00021917,4]
[331026759,1720013436867,-500.0,0.00021917,4]
[331026760,1720013436880,-500.0,0.00021917,4]
[331026761,1720013436890,-500.0,0.00021917,4]
[331026762,1720013436900,-500.0,0.00021917,4]
[331026763,1720013436909,-331.18535533,0.00021917,4]
[331026764,1720013436919,-500.0,0.00021917,4]
[331026765,1720013436928,-500.0,0.00021917,4]
[331026766,1720013436939,-500.0,0.00021917,4]
[331026767,1720013436949,-500.0,0.00021917,4]
[331026768,1720013436958,-500.0,0.00021917,4]
[331026769,1720013436968,-500.0,0.00021917,4]
[331026770,1720013436978,-500.0,0.00021917,4]
[331026771,1720013436988,-500.0,0.00021917,4]
[331026772,1720013436997,-500.0,0.00021917,4]
[331026773,1720013437006,-500.0,0.00021917,4]
[331026774,1720013437016,-500.0,0.00021917,4]
[331026775,1720013437025,-500.0,0.00021917,4]
[331026776,1720013437034,-500.0,0.00021917,4]
[331026777,1720013437043,-500.0,0.00021917,4]
[331026778,1720013437053,-500.0,0.00021917,4]
[331026779,1720013437062,-500.0,0.00021917,4]
[331026780,1720013437071,-500.0,0.00021917,4]
[331026781,1720013437080,-500.0,0.00021917,4]
[331026782,1720013437093,-500.0,0.00021917,4]
[331026783,1720013437102,-500.0,0.00021917,4]
[331026784,1720013437111,-500.0,0.00021917,4]
[331026785,1720013437119,-500.0,0.00021917,4]
[331026786,1720013437128,-500.0,0.00021917,4]
[331026787,1720013437138,-500.0,0.00021917,4]
[331026788,1720013437147,-500.0,0.00021917,4]
[331026789,1720013437157,-500.0,0.00021917,4]
[331026790,1720013437166,-500.0,0.00021917,4]
[331026791,1720013437175,-500.0,0.00021917,4]
[331026792,1720013437185,-500.0,0.00021917,4]
[331026793,1720013437194,-500.0,0.00021917,4]
[331026794,1720013437203,-500.0,0.00021917,4]
[331026795,1720013437213,-500.0,0.00021917,4]
[331026796,1720013437222,-500.0,0.00021917,4]
[331026797,1720013437231,-409.56,0.00021917,4]
[331026798,1720013437240,-500.0,0.00021917,4]
[331026799,1720013437249,-500.0,0.00021917,4]
[331026800,1720013437259,-500.0,0.00021917,4]
[331026801,1720013437268,-500.0,0.00021917,4]
[331026802,1720013437277,-500.0,0.00021917,4]
[331026803,1720013437287,-500.0,0.00021917,4]
[331026804,1720013437296,-500.0,0.00021917,4]
[331026805,1720013437305,-500.0,0.00021917,4]
[331026806,1720013437314,-500.0,0.00021917,4]
[331026807,1720013437324,-500.0,0.00021917,4]
[331026808,1720013437338,-500.0,0.00021917,4]
[331026809,1720013437354,-500.0,0.00021917,4]
[331026810,1720013437363,-371.55461941,0.00021917,4]
[331026811,1720013437374,-501.03001799,0.00021917,4]
[331026812,1720013437383,-500.0,0.00021917,4]
[331026813,1720013437393,-500.0,0.00021917,4]
[331026814,1720013437401,-500.0,0.00021917,4]
[331026815,1720013437412,-500.0,0.00021917,4]
[331026816,1720013437422,-523.36,0.00021917,4]
[331026817,1720013437431,-500.0,0.00021917,4]
[331026818,1720013437440,-500.0,0.00021917,4]
[331026819,1720013437449,-500.0,0.00021917,4]
[331026820,1720013437459,-500.0,0.00021917,4]
[331026821,1720013437468,-500.0,0.00021917,4]
[331026822,1720013437478,-500.0,0.00021917,4]
[331026823,1720013437487,-500.0,0.00021917,4]
[331026824,1720013437497,-500.0,0.00021917,4]
[331026825,1720013437506,-503.64391603,0.00021917,4]
[331026826,1720013437515,-500.0,0.00021917,4]
[331026827,1720013437523,-500.0,0.00021917,4]
[331026828,1720013437533,-500.0,0.00021917,4]
[331026829,1720013437543,-500.0,0.00021917,4]
[331026830,1720013437553,-500.0,0.00021917,4]
[331026831,1720013437562,-500.0,0.00021917,4]
[331026832,1720013437572,-500.0,0.00021917,4]
[331026833,1720013437581,-500.0,0.00021917,4]
[331026834,1720013437593,-500.0,0.00021917,4]
[331026835,1720013437602,-500.0,0.00021917,4]
[331026836,1720013437611,-500.0,0.00021917,4]
[331026837,1720013437620,-500.0,0.00021917,4]
[331026838,1720013437630,-628.79,0.00021917,4]
[331026839,1720013437639,-500.0,0.00021917,4]
[331026840,1720013437648,-500.0,0.00021917,4]
[331026841,1720013437658,-500.0,0.00021917,4]
[331026842,1720013437667,-500.0,0.00021917,4]
[331026843,1720013437676,-500.0,0.00021917,4]
[331026844,1720013437686,-500.0,0.00021917,4]
[331026845,1720013437695,-500.0,0.00021917,4]
[331026847,1720013437704,-500.0,0.00021917,4]
[331026849,1720013437714,-500.0,0.00021917,4]
[331026851,1720013437723,-500.0,0.00021917,4]
[331026853,1720013437732,-500.0,0.00021917,4]
[331026855,1720013437741,-500.0,0.00021917,4]
[331026856,1720013437750,-500.0,0.00021917,4]
[331026857,1720013437759,-500.0,0.00021917,4]
[331026858,1720013437768,-500.0,0.00021917,4]
[331026859,1720013437777,-500.0,0.00021917,4]
[331026860,1720013437786,-500.0,0.00021917,4]
[331026861,1720013437795,-500.0,0.00021917,4]
[331026862,1720013437804,-500.0,0.00021917,4]
[331026863,1720013437814,-500.0,0.00021917,4]
[331026864,1720013437823,-1000.0,0.00021917,4]
[331026866,1720013437832,-500.0,0.00021917,4]
[331026867,1720013437843,-500.0,0.00021917,4]
[331026868,1720013437852,-500.0,0.00021917,4]
[331026869,1720013437862,-1000.0,0.00021917,4]
[331026870,1720013437871,-500.0,0.00021917,4]
[331026871,1720013437880,-500.0,0.00021917,4]
[331026872,1720013437889,-500.0,0.00021917,4]
[331026873,1720013437899,-1000.0,0.00021917,4]
[331026874,1720013437908,-500.0,0.00021917,4]
[331026875,1720013437918,-500.0,0.00021917,4]
[331026876,1720013437927,-615.74844196,0.00021917,4]
[331026877,1720013437937,-500.0,0.00021917,4]
[331026878,1720013437948,-500.0,0.00021917,4]
[331026879,1720013437958,-544.69512612,0.00021917,4]
[331026880,1720013437968,-500.0,0.00021917,4]
[331026881,1720013437977,-500.0,0.00021917,4]
[331026882,1720013437987,-324.82354842,0.00021917,4]
[331026883,1720013437996,-500.0,0.00021917,4]
[331026884,1720013438005,-500.0,0.00021917,4]
[331026885,1720013438015,-500.0,0.00021917,4]
[331026886,1720013438024,-500.0,0.00021917,4]
[331026887,1720013438034,-500.0,0.00021917,4]
[331026888,1720013438043,-500.0,0.00021917,4]
[331026889,1720013438053,-500.0,0.00021917,4]
[331026890,1720013438063,-500.0,0.00021917,4]
[331026891,1720013438073,-500.0,0.00021917,4]
[331026892,1720013438082,-500.0,0.00021917,4]
[331026893,1720013438093,-500.0,0.00021917,4]
[331026894,1720013438102,-500.0,0.00021917,4]
[331026895,1720013438112,-500.0,0.00021917,4]
[331026896,1720013438121,-570.32,0.00021917,4]
[331026897,1720013438131,-500.0,0.00021917,4]
[331026898,1720013438140,-529.68,0.00021917,4]
[331026899,1720013438150,-500.0,0.00021917,4]
[331026900,1720013438160,-500.0,0.00021917,4]
[331026901,1720013438170,-500.0,0.00021917,4]
[331026902,1720013438180,-500.0,0.00021917,4]
[331026903,1720013438189,-500.0,0.00021917,4]